bitfinex/quotes_SOLUSD_20241024
["timestamp","ask_amount","ask_price","bid_price","bid_amount"]
[1729738287429,39.6789311,174.8,174.75,18.3050311]
[1729738287607,21.3739,174.8,174.75,18.3050311]
[1729738287927,27.0948,174.8,174.75,18.3050311]
[1729738288720,21.3739,174.8,174.75,18.3050311]
[1729738288906,21.3739,174.8,174.77,18.3050311]
[1729738290014,21.3739,174.8,174.7,73.3456144]
[1729738290015,21.3739,174.8,174.76,18.3050311]
[1729738290618,5.7193,174.85,174.78,18.3050311]
[1729738290822,45.3982311,174.85,174.8,18.3050311]
[1729738291006,18.3050311,174.84,174.79,18.3050311]
[1729738291732,24.0246311,174.84,174.79,18.3050311]
[1729738292322,24.0245311,174.84,174.73,24.127864]
[1729738292531,24.0245311,174.84,174.79,18.3050311]
[1729738293917,18.3050311,174.83,174.78,18.3050311]
[1729738294223,18.3050311,174.79,174.74,18.3050311]
[1729738294427,18.3050311,174.79,174.75,30.0]
[1729738295226,18.3050311,174.79,174.73,19.61317182]
[1729738295816,18.3050311,174.78,174.73,19.61317182]
[1729738296836,18.3050311,174.78,174.72,18.3050311]
[1729738297025,18.3050311,174.78,174.73,18.3050311]
[1729738297224,18.3050311,174.77,174.72,18.3050311]
[1729738298420,18.3050311,174.77,174.68,15.3663]
[1729738298620,5.7214,174.78,174.71,18.3050311]
[1729738298621,18.3050311,174.76,174.71,18.3050311]
[1729738299026,18.3050311,174.75,174.7,18.3050311]
[1729738299434,18.3050311,174.77,174.72,18.3050311]
[1729738300222,47.8033151,174.78,174.73,18.3050311]
[1729738300423,18.3050311,174.77,174.72,18.3050311]
[1729738301036,18.3050311,174.76,174.71,18.3050311]
[1729738302023,24.0269311,174.77,174.72,18.3050311]
[1729738302937,47.8034151,174.78,174.73,18.3050311]
[1729738303236,29.498384,174.78,174.73,18.3050311]
[1729738306230,39.6789311,174.79,174.73,18.3050311]
[1729738306447,21.3739,174.79,174.74,18.3050311]
[1729738306832,21.3739,174.79,174.76,18.3050311]
[1729738307421,7.02950632,174.87,174.78,18.3050311]
[1729738307422,5.7195,174.84,174.78,18.3050311]
[1729738307745,18.3050311,174.82,174.77,18.3050311]
[1729738307926,18.3050311,174.81,174.76,18.3050311]
[1729738310045,17.8050311,174.81,174.76,18.3050311]
[1729738311837,17.8050311,174.81,174.77,18.3050311]
[1729738312647,17.8050311,174.81,174.72,15.3517]
[1729738312849,18.3050311,174.79,174.74,18.3050311]
[1729738313029,18.3050311,174.78,174.73,48.3050311]
[1729738313543,18.3050311,174.77,174.73,30.0]
[1729738313758,18.3050311,174.78,174.73,48.3050311]
[1729738314040,18.3050311,174.78,174.73,18.3050311]
[1729738314423,24.0266311,174.78,174.73,18.3050311]
[1729738314752,24.0266311,174.78,174.68,15.3517]
[1729738314753,18.3050311,174.77,174.72,18.3050311]
[1729738316637,18.3050311,174.75,174.66,7.26673523]
[1729738316940,18.3050311,174.75,174.7,18.3050311]
[1729738317331,5.7218,174.77,174.71,18.3050311]
[1729738317332,18.3050311,174.76,174.71,18.3050311]
[1729738319535,24.0268311,174.77,174.72,18.3050311]
[1729738319740,46.3701311,174.79,174.74,18.3050311]
[1729738319940,22.3437,174.79,174.75,18.3050311]
[1729738320552,22.3437,174.83,174.77,18.3050311]
[1729738320727,46.3685311,174.83,174.77,18.3050311]
[1729738321044,23.776884,174.81,174.77,18.3050311]
[1729738321228,42.0819151,174.81,174.75,18.3050311]
[1729738321842,18.3050311,174.8,174.75,18.3050311]
[1729738322842,18.3050311,174.78,174.73,18.3050311]
[1729738324429,24.0260311,174.8,174.75,18.3050311]
[1729738325533,18.3050311,174.79,174.74,18.3050311]
[1729738327028,24.0260311,174.8,174.74,18.3050311]
[1729738327228,18.3050311,174.79,174.74,18.3050311]
[1729738327728,18.3050311,174.79,174.73,18.3050311]
[1729738328049,18.3050311,174.74,174.63,15.8634]
[1729738328248,18.3050311,174.72,174.67,18.3050311]
[1729738328429,18.3050311,174.73,174.68,18.3050311]
[1729738328753,18.3050311,174.74,174.69,18.3050311]
[1729738329330,32.92939955,174.75,174.69,18.3050311]
[1729738329529,42.0819151,174.75,174.69,18.3050311]
[1729738329929,47.8044151,174.75,174.69,18.3050311]
[1729738330154,18.3050311,174.74,174.69,18.3050311]
[1729738330728,18.3050311,174.74,174.68,18.3050311]
[1729738331053,18.3050311,174.73,174.67,18.2551111]
[1729738331556,18.3050311,174.73,174.64,0.25098]
[1729738331758,18.3050311,174.71,174.63,15.8634]
[1729738331930,18.3050311,174.72,174.67,18.3050311]
[1729738332461,24.0278311,174.74,174.68,18.3050311]
[1729738333043,18.3050311,174.7,174.65,18.3050311]
[1729738334641,5.7228,174.74,174.66,18.3050311]
[1729738334642,18.3050311,174.71,174.66,18.3050311]
[1729738334840,18.3050311,174.7,174.65,18.3050311]
[1729738335053,24.0291311,174.7,174.65,18.3050311]
[1729738335236,24.0291311,174.7,174.64,18.3050311]
[1729738335237,18.3050311,174.69,174.64,18.3050311]
[1729738335836,18.3050311,174.69,174.63,30.0]
[1729738335837,18.3050311,174.67,174.63,30.0]
[1729738336458,18.3050311,174.66,174.62,4.965199]
[1729738336761,18.3050311,174.68,174.62,23.2702301]
[1729738337345,24.0298311,174.68,174.62,23.2702301]
[1729738338451,24.0298311,174.68,174.63,18.3050311]
[1729738338756,24.0298311,174.68,174.62,23.2702301]
[1729738339734,18.3050311,174.67,174.62,23.2702301]
[1729738339954,22.6573,174.69,174.63,18.3050311]
[1729738340237,22.6573,174.69,174.65,18.3050311]
[1729738340453,20.0,174.72,174.68,18.3050311]
[1729738340747,28.3807,174.73,174.68,18.3050311]
[1729738340748,46.6857311,174.73,174.68,18.3050311]
[1729738342557,23.776884,174.72,174.68,18.3050311]
[1729738343158,29.500484,174.72,174.68,18.3050311]
[1729738344260,21.9105,174.77,174.71,18.3050311]
[1729738344464,21.9105,174.77,174.73,18.3050311]
[1729738345168,27.6323,174.77,174.73,18.3050311]
[1729738346960,20.0,174.8,174.75,18.3050311]
[1729738347162,18.3050311,174.79,174.74,18.3050311]
[1729738347344,18.3050311,174.78,174.73,18.3050311]
[1729738347544,18.3050311,174.74,174.65,30.0]
[1729738347763,18.3050311,174.72,174.66,18.3050311]
[1729738348074,6.2794,174.75,174.69,18.3050311]
[1729738348365,24.5844311,174.75,174.7,18.3050311]
[1729738348869,30.3069311,174.75,174.7,18.3050311]
[1729738349460,18.3050311,174.74,174.69,18.3050311]
[1729738349661,18.3050311,174.73,174.68,18.3050311]
[1729738349861,18.3050311,174.71,174.65,18.3050311]
[1729738350263,18.3050311,174.71,174.6,97.10258568]
[1729738350264,28.64147312,174.67,174.62,28.64147312]
[1729738351564,28.64147312,174.67,174.61,28.64147312]
[1729738352885,28.64147312,174.67,174.62,28.64147312]
[1729738353586,5.7248,174.68,174.6,16.1724]
[1729738353587,34.36627312,174.68,174.63,28.64147312]
[1729738357878,28.64147312,174.68,174.63,28.64147312]
[1729738358072,28.64147312,174.69,174.64,28.64147312]
[1729738358576,28.64147312,174.69,174.61,2.37]
[1729738358577,28.64147312,174.73,174.68,28.64147312]
[1729738358774,28.64147312,174.72,174.67,28.64147312]
[1729738360094,34.36507312,174.72,174.67,28.64147312]
[1729738360478,23.776884,174.72,174.69,28.64147312]
[1729738360681,52.41835712,174.73,174.68,28.64147312]
[1729738362206,5.7234,174.72,174.69,28.64147312]
[1729738362379,44.27257312,174.74,174.69,28.64147312]
[1729738363696,49.99547312,174.74,174.69,28.64147312]
[1729738366275,49.99547312,174.74,174.62,0.1]
[1729738366276,28.64147312,174.73,174.68,28.64147312]
[1729738366594,28.64147312,174.72,174.66,28.64147312]
[1729738369493,28.64147312,174.69,174.64,28.64147312]
[1729738369888,28.64147312,174.68,174.63,28.64147312]
[1729738370086,28.64147312,174.66,174.61,28.64147312]
[1729738370282,28.64147312,174.67,174.61,28.64147312]
[1729738370481,28.64147312,174.67,174.63,30.0]
[1729738371398,28.64147312,174.66,174.63,30.0]
[1729738371879,28.64147312,174.66,174.61,28.64147312]
[1729738373303,34.36657312,174.67,174.61,28.64147312]
[1729738374307,24.0567532,174.67,174.62,18.3316532]
[1729738375010,18.3316532,174.66,174.61,18.3316532]
[1729738375304,24.0572532,174.66,174.61,18.3316532]
[1729738375485,18.3316532,174.65,174.6,18.3316532]
[1729738376898,18.3316532,174.64,174.59,18.3316532]
[1729738379385,24.0574532,174.65,174.6,18.3316532]
[1729738380592,5.7258,174.65,174.61,18.3316532]
[1729738380993,5.7258,174.65,174.62,18.3316532]
[1729738381411,23.776884,174.66,174.62,18.3316532]
[1729738381598,5.7253,174.67,174.63,18.3316532]
[1729738381908,24.0569532,174.67,174.62,18.3316532]
[1729738382616,18.3316532,174.66,174.61,18.3316532]
[1729738383122,22.9093,174.68,174.63,18.3316532]
[1729738383311,46.9657532,174.68,174.63,18.3316532]
[1729738385098,28.6341,174.68,174.64,18.3316532]
[1729738387696,22.9093,174.68,174.65,18.3316532]
[1729738387996,24.0561532,174.69,174.63,18.3316532]
[1729738388201,24.0561532,174.69,174.56,22.75251439]
[1729738388202,20.0,174.73,174.66,18.3316532]
[1729738388402,18.3316532,174.72,174.67,18.3316532]
[1729738388917,28.2761,174.74,174.67,18.3316532]
[1729738389090,18.3316532,174.73,174.67,18.3316532]
[1729738389897,5.7234,174.72,174.67,18.3316532]
[1729738391306,24.0550532,174.72,174.67,18.3316532]
[1729738392011,24.0550532,174.72,174.66,18.3316532]
[1729738392702,42.1085372,174.71,174.59,0.1]
[1729738393016,5.724,174.7,174.65,18.3316532]
[1729738394818,24.0556532,174.7,174.65,18.3316532]
[1729738395117,24.0556532,174.7,174.64,18.3316532]
[1729738395799,24.0561532,174.69,174.63,18.3316532]
[1729738396317,5.7245,174.69,174.64,18.3316532]
[1729738400518,42.1085372,174.68,174.62,18.3316532]
[1729738400839,18.3316532,174.67,174.61,18.3316532]
[1729738401118,18.3316532,174.66,174.61,18.3316532]
[1729738401697,18.3316532,174.67,174.61,18.3316532]
[1729738401912,18.3316532,174.67,174.62,18.3316532]
[1729738402103,24.0570532,174.67,174.62,18.3316532]
[1729738402302,24.0570532,174.67,174.58,2.38]
[1729738402303,18.3316532,174.65,174.58,2.38]
[1729738402608,18.3316532,174.65,174.6,18.3316532]
[1729738403316,23.776884,174.66,174.61,18.3316532]
[1729738403829,42.1085372,174.66,174.61,18.3316532]
[1729738404618,47.8341372,174.66,174.61,18.3316532]
[1729738404917,47.8341372,174.66,174.6,18.3316532]
[1729738405123,47.8341372,174.66,174.55,10.92723273]
[1729738405124,18.3316532,174.63,174.55,10.92723273]
[1729738405337,18.3316532,174.63,174.58,18.3316532]
[1729738405798,18.3316532,174.63,174.55,4.9671902]
[1729738405799,18.3316532,174.62,174.56,18.3316532]
[1729738405997,18.3316532,174.62,174.55,4.9671902]
[1729738405998,18.3316532,174.62,174.57,18.3316532]
[1729738406613,24.0582532,174.63,174.58,18.3316532]
[1729738407441,5.7266,174.63,174.58,18.3316532]
[1729738407601,18.3316532,174.64,174.58,18.3316532]
[1729738407930,23.776884,174.64,174.59,18.3316532]
[1729738408923,29.502984,174.64,174.59,18.3316532]
[1729738410432,47.8346372,174.64,174.59,18.3316532]
[1729738413531,22.5534,174.68,174.63,18.3316532]
[1729738413717,22.5534,174.68,174.65,18.3316532]
[1729738414527,14.3077,174.73,174.6,73.3266128]
[1729738414528,5.7237,174.71,174.67,18.3316532]
[1729738416539,24.0553532,174.71,174.66,18.3316532]
[1729738417038,23.776884,174.7,174.66,18.3316532]
[1729738417440,23.776884,174.7,174.6,73.3266128]
[1729738417615,5.7244,174.69,174.66,18.3316532]
[1729738417814,23.776884,174.68,174.65,18.3316532]
[1729738418722,29.501584,174.68,174.65,18.3316532]
[1729738419415,23.776884,174.69,174.66,18.3316532]
[1729738419621,23.776884,174.7,174.66,18.3316532]
[1729738420743,5.7244,174.69,174.66,18.3316532]
[1729738421541,5.7244,174.69,174.65,18.3316532]
[1729738422226,5.7244,174.69,174.64,18.3316532]
[1729738423228,18.3316532,174.66,174.61,30.0]
[1729738423437,18.3316532,174.66,174.61,48.3316532]
[1729738423936,18.3316532,174.67,174.62,18.3316532]
[1729738424334,42.1085372,174.68,174.62,18.3316532]
[1729738424840,42.1085372,174.68,174.63,18.3316532]
[1729738425231,47.8335372,174.68,174.63,18.3316532]
[1729738425419,47.8335372,174.68,174.62,18.3316532]
[1729738426745,18.3316532,174.67,174.62,18.3316532]
[1729738427947,24.0568532,174.67,174.62,18.3316532]
[1729738431454,42.1085372,174.66,174.61,18.3316532]
[1729738432151,18.3316532,174.65,174.6,18.3316532]
[1729738432956,18.3316532,174.63,174.55,21.0799902]
[1729738433132,18.3316532,174.63,174.57,20.7016532]
[1729738433334,18.3316532,174.62,174.57,20.7016532]
[1729738433644,18.3316532,174.62,174.57,2.37]
[1729738433831,18.3316532,174.62,174.56,18.3316532]
[1729738434750,18.3316532,174.62,174.57,18.3316532]
[1729738436144,18.3316532,174.61,174.55,4.9671902]
[1729738436348,18.3316532,174.61,174.55,23.2988434]
[1729738436653,18.3316532,174.6,174.55,18.3316532]
[1729738437437,18.3316532,174.61,174.55,18.3316532]
[1729738438049,18.3316532,174.61,174.51,23.23561439]
[1729738438232,18.3316532,174.6,174.54,18.3316532]
[1729738439361,18.3316532,174.6,174.55,18.3316532]
[1729738439664,24.0588532,174.61,174.56,18.3316532]
[1729738441460,18.3316532,174.6,174.55,18.3316532]
[1729738441951,24.0589532,174.6,174.55,18.3316532]
[1729738442161,18.3316532,174.61,174.56,18.3316532]
[1729738442462,42.1085372,174.6,174.56,18.3316532]
[1729738442848,42.1085372,174.6,174.55,18.3316532]
[1729738444648,23.776884,174.6,174.55,18.3316532]
[1729738444964,42.1085372,174.6,174.55,18.3316532]
[1729738445351,47.8359372,174.6,174.55,18.3316532]
[1729738445549,47.8359372,174.6,174.51,23.23561439]
[1729738445747,47.8359372,174.6,174.55,18.3316532]
[1729738447762,47.8359372,174.6,174.56,18.3316532]
[1729738447967,29.504284,174.6,174.56,18.3316532]
[1729738452368,22.367,174.67,174.59,18.3316532]
[1729738452565,22.367,174.67,174.62,18.3316532]
[1729738452566,24.0570532,174.66,174.62,18.3316532]
[1729738452865,5.7254,174.66,174.62,18.3316532]
[1729738453054,5.7254,174.66,174.63,18.3316532]
[1729738453257,5.7244,174.69,174.65,18.3316532]
[1729738453447,5.7244,174.69,174.66,18.3316532]
[1729738453648,24.0557532,174.7,174.66,18.3316532]
[1729738453859,24.0557532,174.7,174.65,18.3316532]
[1729738454565,5.7257,174.65,174.59,4.96605218]
[1729738454768,24.0573532,174.65,174.6,18.3316532]
[1729738455954,44.027864,174.7,174.62,18.3316532]
[1729738456164,23.776884,174.66,174.62,18.3316532]
[1729738456867,23.776884,174.66,174.61,18.3316532]
[1729738457170,42.1085372,174.66,174.61,18.3316532]
[1729738457344,18.3316532,174.65,174.6,18.3316532]
[1729738458451,24.0573532,174.65,174.6,18.3316532]
[1729738459253,5.7257,174.65,174.61,18.3316532]
[1729738460065,23.776884,174.64,174.6,18.3316532]
[1729738463175,23.776884,174.64,174.61,18.3316532]
[1729738464374,23.776884,174.64,174.57,15.2142]
[1729738464576,47.8342372,174.65,174.6,18.3316532]
[1729738464754,29.502584,174.65,174.6,18.3316532]
[1729738466259,23.776884,174.65,174.61,18.3316532]
[1729738466457,29.502584,174.65,174.61,18.3316532]
[1729738471773,20.0,174.69,174.62,18.3316532]
[1729738472085,18.3316532,174.67,174.62,18.3316532]
[1729738472959,5.7254,174.66,174.62,18.3316532]
[1729738473360,23.776884,174.67,174.62,18.3316532]
[1729738473688,62.1085372,174.67,174.61,18.3316532]
[1729738473883,62.1085372,174.67,174.62,18.3316532]
[1729738474378,18.3316532,174.66,174.61,18.3316532]
[1729738474768,24.0570532,174.66,174.61,18.3316532]
[1729738475075,5.7254,174.66,174.61,18.3316532]
[1729738478364,18.3316532,174.64,174.57,15.2142]
[1729738478564,18.3316532,174.63,174.57,18.3316532]
[1729738478777,18.3316532,174.62,174.57,18.3316532]
[1729738478979,18.3316532,174.58,174.52,21.2919908]
[1729738479264,18.3316532,174.57,174.48,15.3134]
[1729738479488,18.3316532,174.56,174.51,18.3316532]
[1729738479870,18.3316532,174.57,174.52,18.3316532]
[1729738480379,24.0601532,174.57,174.52,18.3316532]
[1729738482393,5.7285,174.57,174.53,18.3316532]
[1729738483995,23.776884,174.56,174.48,15.3134]
[1729738484201,23.776884,174.56,174.52,18.3316532]
[1729738484983,29.505584,174.56,174.52,18.3316532]
[1729738486310,29.505584,174.56,174.51,18.3316532]
[1729738487897,29.505584,174.56,174.52,18.3316532]
[1729738488401,5.7287,174.56,174.53,18.3316532]
[1729738489495,23.776884,174.57,174.53,18.3316532]
[1729738490683,5.7286,174.56,174.53,18.3316532]
[1729738491104,5.7286,174.56,174.52,9.1658266]
[1729738491278,5.7285,174.57,174.54,18.3316532]
[1729738492179,5.7285,174.57,174.53,18.3316532]
[1729738492685,18.3316532,174.55,174.48,15.3134]
[1729738492898,18.3316532,174.55,174.5,18.3316532]
[1729738494691,24.0607532,174.55,174.48,15.3134]
[1729738494889,18.3316532,174.54,174.49,18.3316532]
[1729738496800,18.3316532,174.54,174.47,30.0]
[1729738496801,18.3316532,174.52,174.47,30.0]
[1729738497000,18.3316532,174.52,174.47,48.3316532]
[1729738497181,18.3316532,174.51,174.47,30.0]
[1729738497388,18.3316532,174.5,174.47,30.0]
[1729738497587,18.3316532,174.5,174.45,18.3316532]
[1729738497788,18.3316532,174.51,174.45,18.3316532]
[1729738499086,5.7306,174.5,174.45,18.3316532]
[1729738501384,5.7306,174.5,174.46,18.3316532]
[1729738501889,24.0622532,174.5,174.45,18.3316532]
[1729738502084,18.3316532,174.49,174.41,4.9711774]
[1729738502396,18.3316532,174.47,174.42,26.68]
[1729738502595,18.3316532,174.46,174.42,26.68]
[1729738503402,18.3316532,174.46,174.41,18.3316532]
[1729738503715,18.3316532,174.47,174.4,15.0662]
[1729738503904,18.3316532,174.45,174.36,6.59577718]
[1729738504211,18.3316532,174.46,174.41,18.3316532]
[1729738505399,24.0634532,174.47,174.42,18.3316532]
[1729738506488,24.0634532,174.47,174.37,1.43633147]
[1729738506706,18.3316532,174.46,174.41,18.3316532]
[1729738508484,24.0636532,174.46,174.41,18.3316532]
[1729738510911,18.3316532,174.45,174.4,18.3316532]
[1729738511104,24.0636532,174.46,174.41,18.3316532]
[1729738511608,18.3316532,174.43,174.38,18.3316532]
[1729738512000,18.3316532,174.43,174.37,19.64249467]
[1729738512303,24.0648532,174.43,174.38,18.3316532]
[1729738512499,24.0648532,174.43,174.37,1.31084147]
[1729738512690,24.0648532,174.43,174.37,19.64249467]
[1729738513215,23.776884,174.42,174.37,19.64249467]
[1729738513401,23.776884,174.42,174.37,18.3316532]
[1729738514108,23.776884,174.42,174.38,18.3316532]
[1729738514311,23.776884,174.42,174.39,18.3316532]
[1729738514524,29.509784,174.43,174.39,18.3316532]
[1729738514698,47.8414372,174.43,174.38,18.3316532]
[1729738515208,23.776884,174.46,174.41,18.3316532]
[1729738515397,42.1085372,174.46,174.41,18.3316532]
[1729738515815,5.7316,174.47,174.43,18.3316532]
[1729738516322,24.0632532,174.47,174.36,0.62219]
[1729738516620,24.0632532,174.47,174.36,6.19219]
[1729738516821,24.0632532,174.47,174.42,18.3316532]
[1729738517506,29.509084,174.46,174.42,18.3316532]
[1729738519226,29.509084,174.46,174.36,6.19219]
[1729738519227,46.2010532,174.48,174.43,18.3316532]
[1729738519612,18.3316532,174.45,174.36,6.19219]
[1729738519928,18.3316532,174.44,174.39,18.3316532]
[1729738521024,24.0644532,174.44,174.39,18.3316532]
[1729738522306,24.0644532,174.44,174.36,0.62219]
[1729738522509,24.0644532,174.44,174.39,18.3316532]
[1729738522729,24.0644532,174.44,174.36,0.62219]
[1729738522730,18.3316532,174.43,174.38,18.3316532]
[1729738522914,24.0644532,174.44,174.39,18.3316532]
[1729738523117,42.1085372,174.43,174.38,18.3316532]
[1729738524031,5.7332,174.42,174.38,18.3316532]
[1729738525510,5.7332,174.42,174.36,0.62219]
[1729738525736,23.776884,174.41,174.38,18.3316532]
[1729738525921,23.776884,174.41,174.37,18.3316532]
[1729738526434,23.776884,174.41,174.36,0.62219]
[1729738526435,42.1085372,174.41,174.36,0.62219]
[1729738526923,23.776884,174.39,174.36,0.62219]
[1729738527226,42.1085372,174.39,174.36,0.62219]
[1729738527643,5.7346,174.38,174.36,0.62219]
[1729738527932,23.776884,174.39,174.36,0.62219]
[1729738528136,29.511184,174.39,174.36,0.62219]
[1729738528511,23.776884,174.39,174.36,0.62219]
[1729738528713,29.511184,174.39,174.36,0.62219]
[1729738530132,22.8665,174.42,174.36,9.7880166]
[1729738530350,22.8665,174.42,174.38,18.3316532]
[1729738531320,28.5998,174.42,174.38,18.3316532]
[1729738531518,22.8665,174.42,174.39,18.3316532]
[1729738532130,5.7329,174.43,174.39,18.3316532]
[1729738532334,18.3316532,174.44,174.36,0.62219]
[1729738532335,25.7325,174.45,174.41,18.3316532]
[1729738532538,5.7325,174.45,174.42,18.3316532]
[1729738533840,23.776884,174.44,174.42,18.3316532]
[1729738534426,23.776884,174.45,174.42,18.3316532]
[1729738534746,22.8665,174.46,174.43,18.3316532]
[1729738536238,22.8665,174.46,174.42,18.3316532]
[1729738538320,23.776884,174.45,174.42,18.3316532]
[1729738538526,42.1085372,174.45,174.41,18.3316532]
[1729738538818,42.1085372,174.45,174.4,18.3316532]
[1729738539620,29.509184,174.45,174.4,18.3316532]
[1729738539829,47.8408372,174.45,174.4,18.3316532]
[1729738540017,23.776884,174.45,174.42,18.3316532]
[1729738540212,23.776884,174.45,174.41,18.3316532]
[1729738540545,42.1085372,174.45,174.41,18.3316532]
[1729738541334,18.3316532,174.44,174.36,0.62219]
[1729738541638,18.3316532,174.43,174.38,18.3316532]
[1729738541823,18.3316532,174.42,174.38,18.3316532]
[1729738542529,18.3316532,174.42,174.36,0.62219]
[1729738542530,23.776884,174.38,174.36,0.62219]
[1729738542732,9.1658266,174.37,174.36,0.62219]
[1729738542912,32.9427106,174.38,174.36,0.62219]
[1729738542913,23.776884,174.38,174.36,0.62219]
[1729738543114,18.3316532,174.39,174.36,0.62219]
[1729738543319,18.3316532,174.4,174.36,0.62219]
[1729738544217,24.0649532,174.42,174.37,18.3316532]
[1729738545246,18.3316532,174.41,174.36,18.9538432]
[1729738547157,18.3316532,174.42,174.37,18.3316532]
[1729738548450,24.0651532,174.42,174.37,18.3316532]
[1729738548765,18.3316532,174.41,174.36,18.9538432]
[1729738549147,18.3316532,174.39,174.36,0.62219]
[1729738549737,42.1085372,174.38,174.36,0.62219]
[1729738549959,18.3316532,174.38,174.36,0.62219]
[1729738550658,29.511784,174.37,174.36,0.62219]
[1729738551340,47.8434372,174.37,174.36,0.62219]
[1729738554572,29.511784,174.37,174.36,0.62219]
[1729738555163,47.8434372,174.37,174.36,0.62219]
[1729738556567,29.511784,174.37,174.36,0.62219]
[1729738556760,47.8434372,174.37,174.36,0.62219]
[1729738559057,47.9689272,174.37,174.36,0.62219]
[1729738559268,68.0944172,174.37,174.36,9e-05]
[1729738561263,49.637274,174.37,174.36,9e-05]
[1729738561466,29.511784,174.37,174.36,9e-05]
[1729738561645,5.7349,174.37,174.36,9e-05]
[1729738562057,21.4452,174.4,174.36,9e-05]
[1729738562267,18.3316532,174.38,174.36,9e-05]
[1729738562469,18.3316532,174.37,174.36,9e-05]
[1729738562954,42.1085372,174.37,174.36,9e-05]
[1729738563165,47.8434372,174.37,174.36,9e-05]
[1729738563674,18.3316532,174.39,174.36,9e-05]
[1729738563848,24.0660532,174.39,174.36,9e-05]
[1729738564551,45.5107532,174.4,174.36,9e-05]
[1729738565061,23.776884,174.39,174.36,9e-05]
[1729738565265,18.3316532,174.41,174.36,18.3317432]
[1729738565451,23.776884,174.4,174.36,18.3317432]
[1729738565646,23.776884,174.4,174.37,18.3316532]
[1729738565862,18.3316532,174.41,174.37,18.3316532]
[1729738566063,18.3316532,174.42,174.37,18.3316532]
[1729738566857,0.1,174.48,174.36,9e-05]
[1729738566858,18.3316532,174.47,174.41,18.3316532]
[1729738567055,18.3316532,174.47,174.42,18.3316532]
[1729738567570,24.0635532,174.47,174.42,18.3316532]
[1729738567948,23.776884,174.46,174.42,18.3316532]
[1729738568368,5.7314,174.48,174.44,18.3316532]
[1729738568571,41.1315532,174.49,174.45,18.3316532]
[1729738568572,6.3783,174.49,174.45,18.3316532]
[1729738568866,5.7308,174.5,174.46,18.3316532]
[1729738569674,5.7308,174.5,174.47,18.3316532]
[1729738570469,5.7308,174.5,174.46,18.3316532]
[1729738571959,5.7296,174.53,174.46,18.3316532]
[1729738572157,24.0612532,174.53,174.48,18.3316532]
[1729738572352,5.7296,174.53,174.49,18.3316532]
[1729738572566,22.4085,174.58,174.5,18.3316532]
[1729738572851,18.3316532,174.59,174.54,18.3316532]
[1729738573064,18.3316532,174.59,174.49,16.5668]
[1729738573065,18.3316532,174.61,174.56,18.3316532]
[1729738573953,24.0588532,174.61,174.56,18.3316532]
[1729738574280,28.66365156,174.59,174.54,28.66365156]
[1729738574485,28.66365156,174.6,174.55,28.66365156]
[1729738575481,34.39115156,174.6,174.55,28.66365156]
[1729738576681,28.66365156,174.59,174.54,28.66365156]
[1729738577579,28.66365156,174.56,174.51,28.66365156]
[1729738577877,28.66365156,174.52,174.46,28.66365156]
[1729738578079,28.66365156,174.53,174.47,28.66365156]
[1729738578369,28.66365156,174.53,174.48,28.66365156]
[1729738578957,28.66365156,174.52,174.47,28.66365156]
[1729738579159,28.66365156,174.51,174.46,28.66365156]
[1729738579476,28.66365156,174.5,174.45,28.66365156]
[1729738579859,28.66365156,174.5,174.44,45.23045156]
[1729738580055,28.66365156,174.51,174.45,28.66365156]
[1729738580462,28.66365156,174.52,174.46,28.66365156]
[1729738581277,28.66365156,174.51,174.46,28.66365156]
[1729738582680,5.7297,174.53,174.46,28.66365156]
[1729738582681,28.66365156,174.52,174.46,28.66365156]
[1729738582865,28.66365156,174.52,174.47,28.66365156]
[1729738583384,28.66365156,174.53,174.48,28.66365156]
[1729738584082,28.66365156,174.54,174.49,28.66365156]
[1729738585270,28.66365156,174.55,174.5,28.66365156]
[1729738585566,28.66365156,174.58,174.53,28.66365156]
[1729738586286,28.66365156,174.57,174.52,28.66365156]
[1729738587584,22.0469,174.59,174.52,28.66365156]
[1729738587773,28.66365156,174.57,174.52,28.66365156]
[1729738587974,28.66365156,174.56,174.51,28.66365156]
[1729738588870,28.66365156,174.53,174.48,28.66365156]
[1729738589071,28.66365156,174.52,174.47,28.66365156]
[1729738589274,28.66365156,174.51,174.46,28.66365156]
[1729738589961,5.728,174.58,174.44,28.66365156]
[1729738589962,28.66365156,174.49,174.44,28.66365156]
[1729738590166,28.66365156,174.49,174.45,30.0]
[1729738590368,28.66365156,174.5,174.45,58.66365156]
[1729738590569,28.66365156,174.5,174.45,28.66365156]
[1729738591373,28.66365156,174.48,174.42,28.66365156]
[1729738591688,28.66365156,174.46,174.41,28.66365156]
[1729738591871,28.66365156,174.46,174.4,14.33182578]
[1729738592081,28.66365156,174.46,174.41,28.66365156]
[1729738592382,28.66365156,174.47,174.41,28.66365156]
[1729738592971,28.66365156,174.46,174.41,28.66365156]